bitfinex-derivatives/quotes_ETHF0:USTF0_20230403
["timestamp","ask_amount","ask_price","bid_price","bid_amount"]
[1680563439626,2.195,1811.3,1810.8,5.4178]
[1680563440125,2.195,1811.3,1810.8,6.56885145]
[1680563440428,2.195,1811.3,1810.9,1.15105145]
[1680563440822,2.195,1811.3,1811.0,3.2078]
[1680563441630,5.98323542,1811.5,1811.0,5.4118]
[1680563443631,5.98323542,1811.5,1811.0,6.56285145]
[1680563443831,5.98323542,1811.5,1811.0,5.4118]
[1680563447826,0.57743542,1811.5,1811.2,2.21]
[1680563448027,0.85441581,1811.7,1811.4,5.4118]
[1680563448228,2.75822278,1811.8,1811.6,2.21]
[1680563448229,1.43185123,1811.8,1811.6,2.21]
[1680563448432,0.57743542,1811.9,1811.6,5.4178]
[1680563450636,2.78743542,1811.9,1811.4,2.21]
[1680563450832,0.43500863,1811.8,1811.4,2.21]
[1680563451136,0.57743542,1812.0,1811.6,5.4178]
[1680563458648,2.07743542,1812.0,1811.6,2.21]
[1680563458842,2.188,1811.7,1811.2,2.21]
[1680563459035,2.188,1811.7,1811.2,3.07472818]
[1680563459241,2.188,1811.7,1811.2,2.21]
[1680563460744,5.3958,1811.7,1811.2,2.21]
[1680563461245,2.188,1811.7,1811.2,2.21]
[1680563461942,2.188,1811.7,1811.3,3.2078]
[1680563462133,1.104,1811.8,1811.3,4.3118]
[1680563462337,1.104,1811.8,1811.5,3.2078]
[1680563466047,0.44298133,1811.7,1811.5,3.2078]
[1680563468751,0.44298133,1811.7,1811.3,4.3118]
[1680563469745,1.094,1811.5,1811.2,0.86472818]
[1680563469946,4.3018,1811.5,1811.0,1.96872818]
[1680563470753,4.3018,1811.5,1811.1,0.86472818]
[1680563474748,4.3018,1811.5,1811.2,0.86472818]
[1680563474951,4.3018,1811.5,1811.1,0.86472818]
[1680563475953,4.29855499,1811.5,1811.1,0.86472818]
[1680563476751,4.29855499,1811.5,1811.2,0.86472818]
[1680563477257,2.21007285,1811.6,1811.2,5.17652818]
[1680563477455,1.63263743,1811.6,1811.2,5.17652818]
[1680563477651,2.21007285,1811.6,1811.2,5.17652818]
[1680563477850,1.094,1811.6,1811.2,5.17652818]
[1680563478156,1.094,1811.6,1811.3,0.86472818]
[1680563478557,1.094,1811.6,1811.2,5.17652818]
[1680563479055,4.22821675,1811.7,1811.4,4.3118]
[1680563479353,4.22821675,1811.7,1811.4,1.104]
[1680563480153,0.57743542,1811.6,1811.3,0.86472818]
[1680563480455,0.57743542,1811.6,1811.1,1.15105145]
[1680563480456,4.88623542,1811.5,1811.2,0.86472818]
[1680563480650,1.5,1811.4,1811.2,0.86472818]
[1680563480857,1.94186871,1811.4,1811.2,0.86472818]
[1680563481167,0.44186871,1811.4,1811.2,0.86472818]
[1680563481751,0.44186871,1811.4,1811.3,0.86472818]
[1680563483252,0.44186871,1811.4,1811.3,4.43459566]
[1680563483459,0.57743542,1811.8,1811.3,4.72273794]
[1680563483669,0.57743542,1811.8,1811.5,0.86656062]
[1680563485558,3.78523542,1811.8,1811.5,0.86656062]
[1680563485765,0.57743542,1811.7,1811.5,0.86656062]
[1680563485960,1.68143542,1811.7,1811.5,0.86656062]
[1680563486163,6.65621581,1811.6,1811.3,0.86656062]
[1680563486461,1.68198283,1811.5,1811.3,0.86656062]
[1680563486665,1.5,1811.4,1811.3,0.86656062]
[1680563487065,1.5,1811.4,1811.2,0.86656062]
[1680563487766,1.5,1811.4,1811.3,0.86656062]
[1680563490362,3.18198283,1811.5,1811.3,0.86656062]
[1680563491063,5.8018,1811.4,1811.2,0.86656062]
[1680563491268,6.37978283,1811.4,1811.2,0.86656062]
[1680563491658,1.5,1811.3,1811.2,0.86656062]
[1680563492165,2.594,1811.3,1811.2,0.86656062]
[1680563492670,2.594,1811.3,1810.9,0.00107081]
[1680563492970,1.5,1810.9,1810.2,4.94126616]
[1680563493160,1.104,1810.5,1810.4,1.15699579]
[1680563493856,1.104,1810.5,1810.3,2.1311504]
[1680563494262,1.104,1810.5,1810.4,2.1311504]
[1680563494566,1.104,1810.5,1810.4,0.68490915]
[1680563494868,1.104,1810.5,1810.4,1.15719287]
[1680563495073,1.104,1810.5,1810.3,1.15719287]
[1680563495665,2.604,1810.5,1810.3,1.15719287]
[1680563495867,0.87675194,1810.4,1810.2,4.36499287]
[1680563496667,0.87675194,1810.4,1810.2,1.15719287]
[1680563498571,0.87675194,1810.4,1810.1,1.15719287]
[1680563498771,0.87675194,1810.4,1810.1,1.82502309]
[1680563500965,0.87675194,1810.4,1810.1,1.15719287]
[1680563501173,1.104,1810.3,1810.1,1.15719287]
[1680563501467,1.104,1810.3,1810.0,1.30719287]
[1680563501671,1.104,1810.3,1810.0,0.15]
[1680563501869,2.604,1810.3,1810.0,0.15]
[1680563502274,1.104,1810.3,1810.0,0.15]
[1680563502978,1.104,1810.3,1810.0,4.51499287]
[1680563504576,1.104,1810.3,1810.0,3.3578]
[1680563506774,1.104,1810.1,1810.0,0.15]
[1680563508380,1.104,1810.3,1810.0,3.3578]
[1680563510981,1.14059619,1810.2,1810.0,3.3578]
[1680563512791,1.14059619,1810.2,1810.0,0.15]
[1680563515292,1.14059619,1810.2,1810.0,3.3578]
[1680563517387,1.14059619,1810.2,1810.0,4.4618]
[1680563517687,4.3118,1810.5,1810.0,4.4618]
[1680563519079,1.104,1810.5,1810.2,3.2078]
[1680563519283,0.54192729,1810.8,1810.4,4.3118]
[1680563519483,4.3018,1810.9,1810.5,1.5]
[1680563519677,4.3018,1810.9,1810.4,4.3118]
[1680563520089,6.5294323,1810.9,1810.4,4.3118]
[1680563520386,1.104,1810.7,1810.4,3.2078]
[1680563520791,1.104,1810.5,1810.2,3.2078]
[1680563521988,1.101,1810.7,1810.2,4.3118]
[1680563522190,1.101,1810.7,1810.4,3.2078]
[1680563524896,1.101,1810.7,1810.2,1.104]
[1680563525291,1.099,1810.6,1810.2,0.57532928]
[1680563525801,2.599,1810.6,1810.2,0.57532928]
[1680563525996,0.8543533,1810.5,1810.1,4.88712928]
[1680563526499,0.8543533,1810.5,1810.2,0.57532928]
[1680563527598,1.099,1810.4,1810.2,0.57532928]
[1680563527898,1.099,1810.4,1810.1,0.57532928]
[1680563528194,1.099,1810.4,1810.2,0.57532928]
[1680563528400,1.099,1810.4,1810.3,3.2078]
[1680563528594,1.099,1810.4,1810.3,3.78312928]
[1680563531495,1.099,1810.4,1810.3,3.2078]
[1680563532003,1.9583533,1810.5,1810.3,3.2078]
[1680563532200,1.9583533,1810.5,1810.4,0.57703246]
[1680563533704,0.8543533,1810.5,1810.4,0.57703246]
[1680563534003,0.8543533,1810.5,1810.3,3.2078]
[1680563534004,0.8543533,1810.5,1810.3,4.36499287]
[1680563534200,1.104,1810.7,1810.3,4.36499287]
[1680563534399,1.104,1810.7,1810.5,3.78489369]
[1680563534800,1.104,1810.7,1810.6,0.57709369]
[1680563537605,1.104,1810.7,1810.5,4.36499287]
[1680563541013,1.94794827,1810.6,1810.4,1.15719287]
[1680563541319,1.94794827,1810.6,1810.4,1.82694404]
[1680563542914,1.94794827,1810.6,1810.5,1.15719287]
[1680563549324,0.85394827,1810.6,1810.5,4.36499287]
[1680563549720,1.104,1810.7,1810.5,4.36499287]
[1680563550220,0.57770684,1810.8,1810.5,4.36499287]
[1680563550419,0.57770684,1810.8,1810.7,0.57853597]
[1680563550827,4.76375495,1810.9,1810.7,0.57853597]
[1680563551325,0.57770684,1810.8,1810.7,0.57853597]
[1680563552116,1.68170684,1810.8,1810.7,0.57853597]
[1680563553223,1.68170684,1810.8,1810.7,0.86772299]
[1680563555924,2.09520391,1810.8,1810.7,0.86772299]
[1680563560230,3.59520391,1810.8,1810.7,0.86772299]
[1680563560530,4.97091288,1810.8,1810.7,0.57882681]
[1680563561335,4.11649707,1810.8,1810.7,0.57882681]
[1680563561835,4.98405353,1810.8,1810.7,0.57882681]
[1680563562735,4.98405353,1810.8,1810.7,0.57178868]
[1680563562932,4.11649707,1810.8,1810.7,0.57178868]
[1680563563729,4.11649707,1810.8,1810.7,1.43951167]
[1680563564436,2.61649707,1810.8,1810.7,0.86772299]
[1680563565039,3.48443307,1810.8,1810.7,0.86772299]
[1680563565243,2.38043307,1810.8,1810.7,0.86772299]
[1680563567940,1.51249707,1810.8,1810.7,0.86772299]
[1680563569241,2.64026067,1810.8,1810.7,0.86772299]
[1680563569739,2.38062995,1810.8,1810.7,0.86772299]
[1680563570343,1.51249707,1810.8,1810.7,0.86772299]
[1680563571044,2.64026067,1810.8,1810.7,0.86772299]
[1680563573141,2.64026067,1810.8,1810.6,0.86772299]
[1680563573446,2.594,1810.7,1810.6,0.86772299]
[1680563573649,6.9295636,1810.7,1810.6,0.86772299]
[1680563573846,7.34256703,1810.7,1810.6,0.86772299]
[1680563575548,7.34256703,1810.7,1810.4,1.82449573]
[1680563575549,7.34256703,1810.7,1810.5,0.86772299]
[1680563575849,1.96864184,1810.6,1810.5,0.86772299]
[1680563576053,3.46864184,1810.6,1810.5,0.86772299]
[1680563576649,1.104,1810.5,1810.1,1.4482791]
[1680563576853,4.88712025,1810.2,1810.1,1.4482791]
[1680563577052,4.88712025,1810.2,1810.0,1.5982791]
[1680563577355,1.104,1810.1,1810.0,0.15]
[1680563577746,2.604,1810.1,1810.0,0.15]
[1680563578345,2.604,1810.1,1809.7,0.54659859]
[1680563578346,1.5,1810.0,1809.8,1.4482791]
[1680563578552,4.3068,1809.9,1809.8,1.4482791]
[1680563579846,4.3068,1809.9,1809.8,2.06291148]
[1680563580260,4.3068,1809.9,1809.7,1.4482791]
[1680563580449,1.099,1809.8,1809.7,1.4482791]
[1680563580648,1.099,1809.8,1809.7,2.06256557]
[1680563580843,1.099,1809.8,1809.7,1.4482791]
[1680563581047,2.599,1809.8,1809.7,1.4482791]
[1680563582449,2.599,1809.8,1809.7,0.61428647]
[1680563582657,2.599,1809.8,1809.6,1.4482791]
[1680563582957,4.3018,1809.7,1809.6,1.4482791]
[1680563583456,4.3018,1809.7,1809.6,2.0196647]
[1680563584161,1.094,1809.7,1809.6,2.0196647]
[1680563584849,1.094,1809.7,1809.5,2.00741991]
[1680563585048,4.3018,1809.7,1809.5,2.00741991]
[1680563585461,2.604,1809.6,1809.4,1.4482791]
[1680563585761,1.099,1809.5,1809.4,1.4482791]
[1680563585958,1.93635119,1809.5,1809.4,1.4482791]
[1680563586958,5.14415119,1809.5,1809.4,1.4482791]
[1680563587154,5.14415119,1809.5,1809.0,0.1]
[1680563587155,1.448,1809.4,1809.0,0.1]
[1680563587350,1.104,1809.1,1809.0,0.1]
[1680563587547,3.2078,1809.3,1809.0,0.1]
[1680563587548,4.3068,1809.3,1809.0,0.1]
[1680563587958,4.3068,1809.3,1809.1,0.558979]
[1680563589255,4.3068,1809.3,1809.0,0.1]
[1680563589961,2.595,1809.0,1808.6,0.54586424]
[1680563590153,1.101,1808.8,1808.3,6.104]
[1680563590349,1.101,1808.8,1808.4,0.55835651]
[1680563590758,1.101,1808.8,1808.3,1.64353341]
[1680563590759,3.2078,1808.7,1808.3,1.64353341]
[1680563590951,3.2078,1808.7,1808.4,0.55839777]
[1680563591355,1.104,1808.6,1808.4,0.55839777]
[1680563591554,1.104,1808.6,1808.3,0.53953341]
[1680563591757,1.104,1808.6,1808.2,4.89366146]
[1680563592061,3.2078,1808.7,1808.3,1.104]
[1680563592260,1.101,1808.8,1808.3,1.104]
[1680563593259,3.2078,1808.7,1808.3,1.104]
[1680563593464,1.5,1808.6,1808.3,1.104]
[1680563593765,2.604,1808.6,1808.2,5.45034524]
[1680563594066,2.604,1808.6,1808.2,3.76448378]
[1680563595164,1.101,1808.3,1808.0,0.15]
[1680563596669,4.3088,1808.3,1808.0,0.15]
[1680563596861,1.5,1808.2,1808.0,0.15]
[1680563597059,4.3118,1808.1,1807.5,3.2078]
[1680563597267,1.104,1807.8,1807.5,3.2078]
[1680563597967,2.604,1807.8,1807.5,3.2078]
[1680563598163,1.104,1807.8,1807.5,3.2078]
[1680563598471,2.604,1807.8,1807.4,0.56506756]
[1680563598656,2.604,1807.8,1807.3,4.3118]
[1680563599158,1.104,1807.4,1807.3,3.2078]
[1680563599360,1.104,1807.4,1807.1,3.2078]
[1680563599871,5.8118,1807.9,1807.3,4.3118]
[1680563600075,1.104,1807.9,1807.5,3.2078]
[1680563600772,1.104,1807.9,1807.4,1.104]
[1680563601063,1.78682815,1807.8,1807.4,4.3118]
[1680563601479,1.104,1807.9,1807.4,4.3118]
[1680563601965,4.3118,1807.9,1807.4,4.3118]
[1680563602166,1.104,1807.8,1807.4,3.2078]
[1680563602868,1.104,1807.8,1807.6,3.2078]
[1680563603064,3.2078,1807.9,1807.6,3.2078]
[1680563603661,3.2078,1808.2,1807.8,1.104]
[1680563604966,3.2078,1808.4,1807.8,4.3118]
[1680563605172,3.2078,1808.4,1807.8,1.104]
[1680563605673,3.2078,1808.2,1807.8,4.3118]
[1680563605875,4.3118,1808.4,1807.9,1.099]
[1680563606171,0.54973795,1808.5,1808.3,1.104]
[1680563606373,3.2078,1808.6,1808.3,1.104]
[1680563608474,4.3088,1808.8,1808.3,1.104]
[1680563611470,4.3088,1808.6,1808.1,1.104]
[1680563611678,1.099,1808.4,1807.9,1.104]
[1680563612070,1.099,1808.4,1808.0,3.2078]
[1680563612675,4.3068,1808.4,1808.0,3.2078]
[1680563612979,1.099,1808.4,1808.0,3.2078]
[1680563613480,1.099,1808.4,1807.9,1.104]
[1680563613671,4.3068,1808.4,1807.9,1.104]
[1680563614676,4.30438554,1808.4,1807.9,1.104]
[1680563615971,2.85313415,1808.3,1807.9,1.104]
[1680563616181,2.85313415,1808.3,1807.8,3.2078]
[1680563616182,4.3088,1808.2,1807.8,3.2078]
[1680563616570,1.5,1808.1,1807.8,3.2078]
[1680563617979,4.3088,1808.2,1807.8,3.2078]
[1680563618677,1.101,1808.2,1807.8,3.2078]
[1680563620768,1.35313415,1808.3,1807.9,1.104]
[1680563620977,1.35313415,1808.3,1808.0,3.2078]
[1680563623677,1.35313415,1808.3,1808.1,1.104]
[1680563623876,1.101,1808.6,1808.1,1.104]
[1680563624481,1.101,1808.6,1808.2,3.2078]
[1680563625676,1.101,1808.6,1808.2,8.7258]
[1680563628178,4.3068,1808.8,1808.4,3.2078]
[1680563630984,1.35132698,1808.7,1808.4,3.2078]
[1680563632184,1.35132698,1808.7,1808.4,4.3068]
[1680563635078,1.35132698,1808.7,1808.4,5.44796607]
[1680563636683,1.35132698,1808.7,1808.5,0.86721523]
[1680563637893,1.101,1808.6,1808.4,0.86721523]
[1680563638092,2.604,1808.5,1808.4,0.86721523]
[1680563639779,1.104,1808.5,1808.4,0.86721523]
[1680563640085,2.604,1808.5,1808.4,0.86721523]
[1680563641794,2.604,1808.5,1808.3,0.86721523]
[1680563641988,3.2078,1808.4,1808.3,0.86721523]
[1680563642284,4.3118,1808.4,1808.3,0.86721523]
[1680563645994,5.6688964,1808.4,1808.3,0.86721523]
[1680563646194,5.6688964,1808.4,1808.2,1.14116607]
[1680563647887,5.6688964,1808.4,1808.2,3.13129886]
[1680563648096,5.6688964,1808.4,1808.3,1.14116607]
[1680563648796,5.6688964,1808.4,1808.2,1.14116607]
[1680563649095,2.604,1808.3,1808.2,1.14116607]
[1680563649796,2.604,1808.3,1808.1,1.14116607]
[1680563649999,3.2078,1808.2,1808.1,1.14116607]
[1680563650498,3.2078,1808.2,1808.1,1.70525974]
[1680563651099,3.2078,1808.2,1808.1,1.14116607]
[1680563652901,4.3118,1808.2,1808.1,1.14116607]
[1680563654803,1.104,1808.2,1808.1,0.56409367]
[1680563654999,5.6688964,1808.4,1808.1,1.42643159]
[1680563655302,5.6688964,1808.4,1808.3,0.86868298]
[1680563659305,5.6658964,1808.4,1808.3,0.86868298]
[1680563661813,5.6688964,1808.4,1808.3,0.86868298]
[1680563666930,5.6658964,1808.4,1808.3,0.86868298]
[1680563667224,7.1658964,1808.4,1808.2,0.86868298]
[1680563667425,1.099,1808.3,1808.2,0.86868298]
[1680563667623,2.599,1808.3,1808.2,0.86868298]
[1680563667825,4.21313072,1808.3,1808.2,0.86868298]
[1680563671128,5.31713072,1808.3,1808.1,0.86868298]
[1680563671332,4.3118,1808.2,1808.1,0.86868298]
[1680563671523,5.8118,1808.2,1808.1,0.86868298]
[1680563673334,5.8118,1808.2,1807.7,1.43236501]
[1680563673335,1.368,1808.1,1807.7,1.43236501]
[1680563673528,4.3118,1807.8,1807.7,1.43236501]
[1680563673733,4.3118,1807.8,1807.7,0.56391356]
[1680563674435,4.3118,1808.0,1807.7,1.43236501]
[1680563674633,1.104,1808.2,1807.8,0.86845145]
[1680563674826,1.61413072,1808.3,1807.9,1.97245145]
[1680563676333,1.61413072,1808.3,1808.0,0.86845145]
[1680563676534,3.2078,1808.2,1808.0,0.86845145]
[1680563676732,2.48762823,1808.1,1807.9,0.86845145]
[1680563677035,3.98762823,1808.1,1807.9,0.86845145]
[1680563677230,2.48762823,1808.1,1807.9,0.86845145]
[1680563678232,2.48762823,1808.1,1808.0,0.86845145]
[1680563678528,2.48762823,1808.1,1807.9,0.86845145]
[1680563678733,2.48762823,1808.1,1808.0,0.86845145]
[1680563678930,2.48762823,1808.1,1807.9,0.86845145]
[1680563679939,2.48762823,1808.1,1808.0,0.86845145]
[1680563682035,1.38362823,1808.1,1808.0,0.86845145]
[1680563691043,0.92290363,1808.1,1808.0,0.86845145]
[1680563699146,2.42290363,1808.1,1808.0,0.86845145]
[1680563699346,0.92290363,1808.1,1808.0,0.86845145]
[1680563701446,2.02690363,1808.1,1808.0,0.86845145]
[1680563701644,2.02690363,1808.1,1808.0,0.5791674]
[1680563706556,2.02690363,1808.1,1808.0,1.44761885]
[1680563708759,2.02690363,1808.1,1808.0,0.86845145]
[1680563715658,2.60329348,1808.1,1807.9,1.15824398]
[1680563718459,2.60329348,1808.1,1808.0,1.15824398]
[1680563719156,2.89148841,1808.1,1808.0,1.44968878]
[1680563719353,2.89148841,1808.1,1808.0,1.44968803]
[1680563719555,2.89148841,1808.1,1808.0,0.86978781]
[1680563720162,2.89315847,1808.1,1808.0,0.86978781]
[1680563720359,1.78915847,1808.1,1808.0,0.86978781]
[1680563720559,2.36657353,1808.1,1808.0,1.15824398]
[1680563720754,1.50031869,1808.1,1808.0,1.15824398]
[1680563721359,0.57739948,1808.2,1808.0,2.52543159]
[1680563721555,0.65558264,1808.1,1808.0,2.52543159]
[1680563721753,0.5380632,1808.1,1808.0,3.07997516]
[1680563722161,1.4434987,1808.3,1808.0,3.08497516]
[1680563722363,1.4434987,1808.3,1808.2,1.16018185]
[1680563722562,1.89959792,1808.3,1808.2,1.16018185]
[1680563723060,1.32219844,1808.3,1808.2,0.87016433]
[1680563724356,1.32219844,1808.3,1808.1,1.16018185]
[1680563724667,1.89958425,1808.3,1808.2,1.16018185]
[1680563724861,1.89958425,1808.3,1808.1,1.16018185]
[1680563725166,1.89958425,1808.3,1808.1,1.71464224]
[1680563725360,0.57738581,1808.2,1808.1,1.71464224]
[1680563726257,1.89958425,1808.3,1808.1,1.71464224]
[1680563726467,1.89958425,1808.3,1808.2,0.87002735]
[1680563728766,1.03348503,1808.3,1808.2,0.87002735]
[1680563729471,1.03348503,1808.3,1808.2,2.0302092]
[1680563729662,1.03348503,1808.3,1808.2,1.16018185]
[1680563729862,1.03348503,1808.3,1808.1,1.16018185]
[1680563730368,1.03348503,1808.3,1808.2,1.16018185]
[1680563730563,1.03348503,1808.3,1808.2,0.86989088]
[1680563730760,1.03348503,1808.3,1808.2,0.8698964]
[1680563732072,2.13748503,1808.3,1808.2,0.8698964]
[1680563735967,2.13748503,1808.3,1808.1,1.16018185]
[1680563736466,2.13748503,1808.3,1808.2,0.86972533]
[1680563739169,3.63748503,1808.3,1808.2,0.86972533]
[1680563739775,2.13748503,1808.3,1808.2,0.86972533]
[1680563740171,3.63748503,1808.3,1808.2,0.86972533]
[1680563740477,4.50358425,1808.3,1808.2,0.86972533]
[1680563740668,3.92619844,1808.3,1808.2,0.86972533]
[1680563741379,2.42619844,1808.3,1808.2,0.86972533]
[1680563741577,3.00334585,1808.3,1808.2,0.86972533]
[1680563741768,3.00334585,1808.3,1808.2,1.44948132]
[1680563741965,2.42619844,1808.3,1808.2,1.44948132]
[1680563742174,4.22932282,1808.3,1808.2,0.86972533]
[1680563742479,4.22932282,1808.3,1808.2,1.44948132]
[1680563742676,3.65219844,1808.3,1808.2,1.449482]
[1680563742978,4.22931061,1808.3,1808.2,1.449482]
[1680563743174,4.22929411,1808.3,1808.2,0.86972533]
[1680563743476,1.89929411,1808.3,1808.2,1.69272533]
[1680563743670,0.45609922,1808.3,1808.2,1.98318185]
[1680563744079,0.45609922,1808.3,1808.2,1.16018185]
[1680563745378,0.45609922,1808.3,1808.1,1.99018185]
[1680563746279,1.03319489,1808.3,1808.1,1.99018185]
[1680563746466,0.45609922,1808.3,1808.2,0.86950646]
[1680563746773,0.45609922,1808.3,1808.1,1.99018185]
[1680563747175,0.45609922,1808.3,1808.2,3.16009762]
[1680563747376,0.45609922,1808.3,1808.2,4.58652921]
[1680563747683,0.57709567,1808.5,1808.2,3.08652921]
[1680563747877,0.57709567,1808.5,1808.4,0.86941942]
[1680563748277,0.57709567,1808.5,1808.4,1.96641942]
[1680563748573,0.86609922,1808.6,1808.4,4.31918491]
[1680563748574,0.57709567,1808.6,1808.4,4.31918491]
[1680563748786,0.57709567,1808.6,1808.5,1.96637612]
[1680563748979,0.57709567,1808.6,1808.5,3.46637612]
[1680563749376,0.57709567,1808.7,1808.5,3.46637612]
[1680563749681,0.57709567,1808.7,1808.6,1.67516829]
[1680563749873,1.44319489,1808.8,1808.6,1.67516829]
[1680563750278,0.57709567,1808.8,1808.7,0.57916829]
[1680563752081,0.57709567,1808.8,1808.7,1.106]
[1680563752279,0.57709567,1808.8,1808.7,1.097]
[1680563752585,0.57709567,1809.0,1808.7,1.67616829]
[1680563752782,0.57709567,1809.0,1808.9,1.106]
[1680563753188,0.57709567,1809.0,1808.9,8.124]
[1680563753489,1.44319489,1809.1,1808.9,2.606]
[1680563753990,1.44319489,1809.1,1809.0,1.5]
[1680563754286,1.44319489,1809.2,1809.0,1.5]
[1680563754486,0.57709567,1809.2,1809.0,1.5]
[1680563756487,4.32821101,1809.3,1809.0,1.5]
[1680563756682,5.19431023,1809.3,1809.0,1.5]
[1680563756887,4.32821101,1809.3,1809.0,1.5]
[1680563757694,4.65099489,1809.3,1808.9,2.606]
[1680563758292,3.78489567,1809.3,1808.9,2.606]
[1680563759797,3.2078,1809.3,1808.9,2.606]
[1680563760295,3.78489567,1809.3,1808.9,2.606]
[1680563760493,3.2078,1809.3,1808.9,2.606]
[1680563761600,3.78489567,1809.3,1808.9,1.106]
[1680563762103,3.2078,1809.3,1809.1,1.097]
[1680563764000,3.78489567,1809.5,1809.2,2.204]
[1680563764309,0.57709567,1809.5,1809.4,1.103]
[1680563764700,0.57709567,1809.6,1809.4,1.103]
[1680563767805,5.97512437,1809.7,1809.5,0.43115578]
[1680563770002,5.42370839,1809.7,1809.5,0.43115578]
[1680563770305,5.0,1809.5,1808.7,0.57916829]
[1680563770504,9.26509567,1809.6,1808.3,0.54696915]
[1680563770505,3.2078,1808.8,1808.3,2.23213744]
[1680563770710,1.1,1808.7,1808.3,0.57916829]
[1680563770897,2.6,1808.7,1808.2,4.3038]
[1680563771112,2.6,1808.7,1808.2,4.85589482]
[1680563771407,1.1,1808.7,1808.2,4.3038]
[1680563773310,4.3078,1808.8,1808.3,1.106]
[1680563773700,3.2078,1808.6,1808.3,1.106]
[1680563775102,4.3078,1808.8,1808.3,1.106]
[1680563779015,0.19657441,1808.7,1808.3,1.106]
[1680563783712,0.19657441,1808.7,1808.5,1.097]
[1680563783916,0.19657441,1808.7,1808.6,1.106]
[1680563784120,3.2078,1809.0,1808.6,1.106]
[1680563784316,0.16575159,1808.9,1808.7,1.106]
[1680563786324,4.88809758,1809.2,1808.7,1.106]
[1680563787119,3.78209758,1809.2,1808.9,1.099]
[1680563787314,3.2078,1809.2,1808.9,1.099]
[1680563787512,3.78209758,1809.2,1808.9,1.099]
[1680563788211,3.78209758,1809.2,1808.6,3.78696829]
[1680563788212,3.2078,1809.0,1808.6,3.78696829]
[1680563788414,4.3138,1809.0,1808.5,1.67616829]
[1680563788920,0.16706345,1808.9,1808.5,1.67616829]
[1680563789420,4.3138,1809.0,1808.5,2.54554441]
[1680563789617,3.2078,1808.8,1808.5,0.57916829]
[1680563789823,0.19871754,1808.7,1808.4,1.67816829]
[1680563790119,1.5,1808.9,1808.4,4.65634441]
[1680563790329,0.57429758,1809.0,1808.8,1.097]
[1680563790524,0.57429758,1809.3,1808.9,1.106]
[1680563791018,4.6481968,1809.4,1809.2,1.103]
[1680563791216,3.78209758,1809.4,1809.2,1.103]
[1680563791409,0.57429758,1809.5,1809.2,1.103]
[1680563791615,0.57429758,1809.5,1809.3,0.08224449]
[1680563794413,3.78209758,1809.6,1809.4,1.097]
[1680563797013,0.57429758,1809.6,1809.4,1.097]
[1680563797215,2.02729234,1809.7,1809.4,1.097]
[1680563797417,1.48847962,1809.7,1809.5,1.5]
[1680563797616,1.48847962,1809.7,1809.4,4.3048]
[1680563797816,0.91418204,1809.7,1809.4,4.3048]
[1680563798021,0.91418204,1809.7,1809.5,0.38916564]
[1680563798520,1.48847962,1809.7,1809.5,0.38916564]
[1680563799320,0.91418204,1809.7,1809.5,0.38916564]
[1680563800627,1.48847962,1809.7,1809.5,0.38916564]
[1680563802228,2.59447962,1809.7,1809.5,0.38916564]
[1680563802424,2.02018204,1809.7,1809.5,0.38916564]
[1680563802619,2.02018204,1809.7,1809.3,4.3068]
[1680563803024,2.59447962,1809.7,1809.3,1.099]
[1680563803728,3.2078,1809.6,1809.3,1.099]
[1680563804723,2.02018204,1809.7,1809.3,1.099]
[1680563811129,0.91418204,1809.7,1809.4,4.3138]
[1680563811630,0.91418204,1809.7,1809.5,1.5]
[1680563812134,0.91418204,1809.7,1809.5,2.596]
[1680563812730,0.91418204,1809.7,1809.6,0.37083514]
[1680563823357,0.91418204,1809.7,1809.6,3.57863514]
[1680563824449,0.91418204,1809.7,1809.6,0.37083514]
[1680563828861,1.48847962,1809.7,1809.6,0.37083514]
[1680563829857,0.91418204,1809.7,1809.6,0.37083514]
[1680563830966,1.48847962,1809.7,1809.6,0.37083514]
[1680563834769,1.78028126,1809.7,1809.6,0.37083514]
[1680563835071,0.91418204,1809.7,1809.6,0.37083514]
[1680563837567,2.04194564,1809.7,1809.6,2.04900343]
[1680563840866,0.91418204,1809.7,1809.6,2.04900343]
[1680563841070,2.04194564,1809.7,1809.6,2.04900343]
[1680563841259,1.78294094,1809.7,1809.6,3.44521126]
[1680563841462,1.49339434,1809.7,1809.6,5.4413179]
[1680563842071,1.49339434,1809.7,1809.6,1.68309201]
[1680563844471,1.49339434,1809.7,1809.6,4.3423179]
[1680563844874,0.91418204,1809.7,1809.6,3.18309201]
[1680563845065,0.91418204,1809.7,1809.6,4.3423179]
[1680563845571,0.91418204,1809.7,1809.6,1.68309201]
[1680563845869,1.49339434,1809.7,1809.6,2.55174578]
[1680563846470,1.49339434,1809.7,1809.6,4.05174578]
[1680563846666,0.91418204,1809.7,1809.6,1.68309201]
[1680563847874,0.91418204,1809.7,1809.6,2.55156091]
[1680563848577,0.91418204,1809.7,1809.6,4.05156091]
[1680563848867,0.91418204,1809.7,1809.6,3.18309201]
[1680563849271,0.91418204,1809.7,1809.6,3.40027682]
[1680563849577,0.91418204,1809.7,1809.6,4.90027682]
[1680563849776,0.91418204,1809.7,1809.6,3.40027682]
[1680563850172,0.91418204,1809.7,1809.6,4.90027682]
[1680563850571,0.91418204,1809.7,1809.6,3.40027682]
[1680563855071,0.91418204,1809.7,1809.6,2.24105093]
[1680563855271,0.91418204,1809.7,1809.6,3.10942063]
[1680563855979,1.49098623,1809.7,1809.6,2.55146171]
[1680563857382,6.08833283,1809.7,1809.6,0.57904692]
[1680563857579,6.08833283,1809.7,1809.6,0.10529294]
[1680563857776,2.88053283,1809.7,1809.6,0.68433986]
[1680563858375,2.88053283,1809.7,1809.6,0.10529294]
[1680563861180,2.88053283,1809.7,1809.6,0.68433986]
[1680563861376,1.78053283,1809.7,1809.6,0.68433986]
[1680563863182,2.35892878,1809.7,1809.6,3.82265084]
[1680563863489,1.49016988,1809.7,1809.6,5.8199743]
[1680563866387,1.49016988,1809.7,1809.6,5.28066332]
[1680563868989,1.49016988,1809.7,1809.6,5.82374302]
[1680563869791,0.91177393,1809.7,1809.6,4.95517264]
[1680563871895,1.49016988,1809.7,1809.6,5.82375382]
[1680563872195,0.91177393,1809.7,1809.6,5.82775382]